bitfinex-derivatives/quotes_ETHF0:USTF0_20250209
["timestamp","ask_amount","ask_price","bid_price","bid_amount"]
[1739061576201,0.569,2632.1,2631.9,1.7016]
[1739061576596,0.555,2632.3,2631.9,1.7016]
[1739061576794,3.2078,2632.8,2632.1,2.72561305]
[1739061576992,0.61,2632.7,2632.1,2.72561305]
[1739061578096,0.61,2632.7,2632.2,3.2078]
[1739061578397,0.61,2632.7,2632.2,1.0874]
[1739061581997,0.61,2632.7,2632.2,4.2952]
[1739061583204,3.2078,2632.8,2632.2,4.2952]
[1739061583800,3.2078,2632.8,2632.4,2.72561305]
[1739061583999,3.2078,2632.8,2632.5,1.1059]
[1739061584198,3.2078,2632.8,2632.5,1.6997]
[1739061585705,3.2078,2632.8,2632.5,0.5544]
[1739061585906,3.8123,2632.8,2632.2,4.2952]
[1739061586705,3.8123,2632.8,2632.2,1.0874]
[1739061589010,3.8123,2632.8,2632.1,2.72561305]
[1739061589205,0.6045,2632.8,2632.1,2.72561305]
[1739061589404,3.2078,2632.6,2632.1,2.72561305]
[1739061589809,0.5605,2632.5,2632.1,2.72561305]
[1739061590810,1.1504,2632.5,2632.1,2.72561305]
[1739061592112,3.2078,2632.3,2632.0,1.7404]
[1739061593715,3.2078,2632.3,2631.8,5.93911701]
[1739061593916,3.2078,2632.3,2631.8,6.51541701]
[1739061595013,0.75972,2632.2,2631.8,3.21350396]
[1739061595212,0.5907,2632.2,2631.8,3.21350396]
[1739061595416,0.598,2632.1,2631.8,3.21350396]
[1739061595614,0.6095,2632.0,2631.8,3.21350396]
[1739061596720,0.6095,2632.0,2631.8,0.00570396]
[1739061600220,3.2078,2631.9,2631.8,0.00570396]
[1739061601013,3.96759,2631.9,2631.8,0.00570396]
[1739061602016,8.12274702,2631.9,2631.8,0.00570396]
[1739061602322,14.99195702,2631.9,2631.1,1.6509]
[1739061602524,3.2078,2631.5,2631.1,0.5635]
[1739061602820,0.5554,2631.4,2631.1,0.5635]
[1739061606018,1.1492,2631.4,2631.1,0.5635]
[1739061610818,3.21350396,2631.5,2631.1,0.5635]
[1739061611115,3.21350396,2631.5,2631.2,2.72561305]
[1739061612723,0.00570396,2631.5,2631.2,2.72561305]
[1739061612924,0.00570396,2631.5,2631.3,0.6091]
[1739061613123,0.00570396,2631.5,2631.4,0.5676]
[1739061620817,3.2078,2632.4,2631.4,9.285]
[1739061621023,1.1623,2632.5,2631.9,2.72561305]
[1739061621223,1.1623,2632.5,2632.0,1.7163]
[1739061622020,1.16800396,2632.5,2632.0,1.7163]
[1739061622831,0.60400396,2632.5,2632.0,1.7163]
[1739061623031,0.00570396,2632.5,2632.2,2.72561305]
[1739061639939,0.60270396,2632.5,2632.2,2.72561305]
[1739061641838,0.00570396,2632.5,2632.2,2.72561305]
[1739061644140,0.00570396,2632.5,2632.1,1.0874]
[1739061644533,0.76532396,2632.5,2631.8,3.2078]
[1739061645245,0.00570396,2632.5,2631.8,3.2078]
[1739061646239,3.2078,2632.4,2631.7,3.2078]
[1739061646436,0.5697,2632.3,2631.7,3.2078]
[1739061646639,0.5887,2632.2,2631.8,0.5563]
[1739061646839,1.1789,2632.2,2631.8,0.5563]
[1739061648041,1.1789,2632.2,2631.9,2.72561305]
[1739061648339,0.5902,2632.2,2632.0,0.5782]
[1739061657152,0.5902,2632.2,2631.9,3.81301305]
[1739061659853,0.5902,2632.2,2631.9,1.0874]
[1739061660055,3.7624,2632.1,2631.9,1.0874]
[1739061660259,3.7624,2632.1,2631.6,3.87341305]
[1739061660560,3.7624,2632.1,2631.3,2.72561305]
[1739061660561,4.03496427,2632.0,2631.3,2.72561305]
[1739061660766,4.03496427,2632.0,2631.3,3.31611305]
[1739061661163,3.2078,2631.8,2631.3,3.31611305]
[1739061661361,0.5607,2631.7,2631.3,3.31611305]
[1739061661663,0.5514,2631.6,2631.2,0.00570396]
[1739061666165,3.2078,2631.8,2631.2,0.00570396]
[1739061666166,3.2078,2631.8,2631.3,2.72561305]
[1739061666362,3.2078,2631.8,2631.6,2.72561305]
[1739061666763,1.7368,2632.3,2631.6,2.72561305]
[1739061666963,1.1659,2632.3,2631.6,2.72561305]
[1739061668272,1.1659,2632.3,2631.9,2.72561305]
[1739061668570,1.1659,2632.3,2632.0,1.1507]
[1739061669770,1.1659,2632.3,2632.0,1.7137]
[1739061670072,0.5576,2632.3,2632.0,1.7137]
[1739061675171,0.5576,2632.3,2632.0,1.1507]
[1739061677369,0.5576,2632.3,2631.9,2.72561305]
[1739061679372,0.5576,2632.3,2631.8,0.6048]
[1739061685271,3.96755,2632.1,2631.5,0.5783]
[1739061685469,3.2078,2631.8,2631.5,0.5783]
[1739061685667,0.5808,2631.7,2631.3,3.29261305]
[1739061685876,0.5808,2631.7,2631.3,3.87081305]
[1739061686573,0.5808,2631.7,2631.3,1.1452]
[1739061686775,3.2078,2631.5,2631.0,2.72561305]
[1739061686976,0.573,2631.4,2631.0,3.87081305]
[1739061687377,1.1744,2631.4,2631.0,3.87081305]
[1739061687779,1.93433,2631.4,2631.0,0.567]
[1739061688079,1.1744,2631.4,2631.0,0.567]
[1739061690185,3.2078,2631.3,2631.0,0.567]
[1739061690876,3.2078,2631.3,2630.7,3.43342934]
[1739061691178,0.76002,2631.1,2630.5,0.554]
[1739061691380,3.2078,2630.8,2630.5,0.554]
[1739061691577,1.1826,2630.7,2630.3,0.6081]
[1739061691881,1.1826,2630.7,2630.1,2.72561305]
[1739061692074,1.739,2630.7,2630.1,3.33371305]
[1739061692381,1.74470396,2630.7,2630.1,3.33371305]
[1739061693172,3.2078,2630.5,2630.1,3.33371305]
[1739061693374,3.2078,2630.5,2629.8,2.72561305]
[1739061693573,3.96801,2630.5,2629.8,2.72561305]
[1739061694176,3.2078,2630.5,2629.8,2.72561305]
[1739061695584,3.2078,2630.2,2629.8,2.72561305]
[1739061696883,3.2078,2630.2,2629.5,1.1425]
[1739061696884,3.2078,2629.9,2629.5,3.86811305]
[1739061699190,3.2078,2630.6,2629.8,2.72561305]
[1739061699384,3.2078,2630.3,2629.8,2.72561305]
[1739061699591,3.2078,2630.0,2629.6,1.0874]
[1739061699780,3.2078,2630.0,2629.5,3.86811305]
[1739061699981,0.5896,2629.9,2629.5,3.86811305]
[1739061703091,3.2078,2630.0,2629.5,3.86811305]
[1739061703289,3.2078,2630.3,2629.5,3.86811305]
[1739061703688,3.2078,2630.3,2629.8,2.72561305]
[1739061703889,3.2078,2630.3,2629.9,0.5685]
[1739061704091,3.2078,2630.3,2630.0,0.6096]
[1739061704391,3.2078,2630.3,2630.1,0.5577]
[1739061704796,3.2078,2630.3,2629.9,0.5685]
[1739061704994,3.2078,2630.3,2629.8,3.28331305]
[1739061705190,3.2078,2630.3,2629.8,0.5577]
[1739061705390,0.5977,2630.2,2629.8,0.5577]
[1739061705891,3.2078,2630.0,2629.5,3.29411305]
[1739061706097,3.96814,2630.0,2629.6,0.5577]
[1739061706389,1.1445,2629.9,2629.6,0.5577]
[1739061706591,1.1445,2629.9,2629.4,3.8174]
[1739061706797,6.28605345,2629.9,2629.4,3.8174]
[1739061707694,9.49385345,2629.9,2629.4,0.6096]
[1739061708287,3.2078,2629.6,2629.4,0.6096]
[1739061708484,3.2078,2629.6,2629.3,0.5581]
[1739061714401,3.2078,2629.6,2629.0,0.6051]
[1739061714596,0.76048,2629.5,2629.0,1.1897]
[1739061714794,3.2078,2629.2,2629.0,0.5846]
[1739061714996,1.31122,2629.4,2629.0,0.5846]
[1739061715197,1.31692396,2629.4,2629.0,0.5846]
[1739061715501,0.5933,2629.3,2629.0,0.5846]
[1739061718100,3.2078,2629.2,2629.0,0.5846]
[1739061718298,0.7606,2629.1,2628.6,3.28241305]
[1739061718497,1.32,2629.1,2628.6,4.46891305]
[1739061718698,0.5594,2629.1,2628.6,4.46891305]
[1739061726105,3.2078,2629.2,2628.6,4.46891305]
[1739061727213,3.2078,2629.2,2628.7,3.2078]
[1739061727509,3.2078,2629.2,2628.9,2.72561305]
[1739061727899,3.2078,2629.2,2629.0,0.6111]
[1739061728104,0.00570396,2629.4,2629.1,1.1899]
[1739061735807,0.00570396,2629.4,2629.1,0.6033]
[1739061736109,7.21196963,2629.3,2628.7,1.2214]
[1739061736298,3.2078,2629.0,2628.7,1.2214]
[1739061736501,0.584,2628.9,2628.7,1.2214]
[1739061739809,0.584,2628.9,2628.3,2.72561305]
[1739061740013,4.3514,2628.9,2628.4,0.5762]
[1739061740209,5.11206,2628.9,2628.4,0.5762]
[1739061740814,4.3514,2628.9,2628.4,0.5762]
[1739061741709,5.11205,2628.9,2628.4,0.5762]
[1739061742312,4.3514,2628.9,2628.4,0.5762]
[1739061742913,5.11207,2628.9,2628.4,0.5762]
[1739061743612,4.3514,2628.9,2628.4,0.5762]
[1739061744218,5.11205,2628.9,2628.4,0.5762]
[1739061746421,0.76068,2628.8,2628.4,0.5762]
[1739061746615,5.11207,2628.9,2628.4,0.5762]
[1739061748424,1.90427,2628.9,2628.4,0.5662]
[1739061748619,3.2078,2628.7,2628.4,0.5662]
[1739061751016,3.2078,2628.7,2628.1,0.5753]
[1739061751421,3.2078,2628.7,2628.3,2.72561305]
[1739061756529,1.90426,2628.9,2628.3,2.72561305]
[1739061756831,7.30004694,2628.8,2628.3,2.72561305]
[1739061758030,7.30004694,2628.8,2628.2,0.5694]
[1739061758430,0.76072,2628.7,2628.2,0.5694]
[1739061758825,0.76071,2628.7,2628.2,0.5694]
[1739061759133,7.30004694,2628.8,2628.2,0.5694]
[1739061759322,0.76071,2628.7,2628.2,0.5694]
[1739061760026,4.18273961,2628.6,2628.2,0.5694]
[1739061760435,3.96849,2628.8,2628.2,0.5694]
[1739061760436,0.611,2628.5,2628.2,0.5694]
[1739061761339,3.2078,2628.8,2628.3,2.72561305]
[1739061761732,3.2078,2628.8,2628.4,0.6021]
[1739061764632,3.2078,2628.8,2628.6,2.72561305]
[1739061764832,3.2078,2628.8,2628.7,1.1331]
[1739061765735,0.611,2628.9,2628.7,1.1331]
[1739061769448,3.8188,2628.9,2628.4,0.6021]
[1739061769737,3.8188,2628.9,2628.3,3.89151305]
[1739061770036,3.96257293,2628.8,2628.3,3.89151305]
[1739061770441,0.611,2628.9,2628.3,3.89151305]
[1739061778543,3.2078,2629.2,2628.6,2.72561305]
[1739061778748,3.2078,2629.2,2628.7,1.7544]
[1739061780749,3.2078,2629.2,2628.9,2.72561305]
[1739061782555,0.00570396,2629.4,2628.9,2.72561305]
[1739061782751,0.00570396,2629.4,2628.7,4.9622]
[1739061782752,0.00570396,2629.4,2629.2,2.72561305]
[1739061783053,0.00570396,2629.4,2629.3,1.1648]
[1739061783455,0.00570396,2629.4,2629.3,5.13314]
[1739061783749,0.5578,2630.0,2629.6,2.72561305]
[1739061783954,0.5578,2630.0,2629.6,5.93341305]
[1739061785154,0.00570396,2630.1,2629.9,2.72561305]
[1739061785354,0.00570396,2630.1,2630.0,1.1791]
[1739061787947,0.0019013,2630.1,2630.0,4.9579]
[1739061790056,0.0019013,2630.1,2630.0,10.9579]
[1739061790863,0.0019013,2630.1,2630.0,4.9579]
[1739061797863,0.0019013,2630.1,2630.0,1.7501]
[1739061798061,0.0019013,2630.1,2630.0,4.9579]
[1739061800363,0.0019013,2630.1,2630.0,4.3869]
[1739061800561,0.0019013,2630.1,2629.9,3.81301305]
[1739061805768,0.0019013,2630.1,2629.9,2.72561305]
[1739061806066,0.0019013,2630.1,2629.6,7.02081305]
[1739061806267,0.5859013,2630.1,2629.6,5.93341305]
[1739061806667,1.3462213,2630.1,2629.6,5.93341305]
[1739061806865,0.5859013,2630.1,2629.6,5.93341305]
[1739061807967,0.5859013,2630.1,2629.6,2.72561305]
[1739061808167,0.5859013,2630.1,2629.6,5.93341305]
[1739061808769,0.5859013,2630.1,2629.6,2.72561305]
[1739061808968,1.3462113,2630.1,2629.6,2.72561305]
[1739061814272,0.76034,2630.0,2629.6,2.72561305]
[1739061814576,3.2078,2629.9,2629.5,0.00570396]
[1739061814774,0.5877,2629.8,2629.5,0.00570396]
[1739061816076,3.96825,2629.6,2629.5,0.00570396]
[1739061816672,13.34539319,2629.6,2628.7,2.72561305]
[1739061816874,3.2078,2629.1,2628.7,2.72561305]
[1739061817071,1.138,2629.0,2628.4,4.35561305]
[1739061817875,1.138,2629.0,2628.5,0.00380266]
[1739061819984,0.569,2628.9,2628.5,0.00380266]
[1739061820280,3.2078,2628.8,2628.5,0.00380266]
[1739061821281,0.569,2628.9,2628.5,0.00380266]
[1739061822377,0.569,2628.9,2628.5,0.58630266]
[1739061822584,0.569,2628.9,2628.6,0.5885]
[1739061824684,0.569,2628.9,2628.6,1.1437]
[1739061837695,3.2078,2629.1,2628.7,2.72561305]
[1739061837995,3.96842,2629.1,2628.6,1.1437]
[1739061838193,2.54753,2629.0,2628.6,1.1437]
[1739061838387,3.2078,2628.8,2628.6,1.1437]
[1739061839692,3.96849,2628.8,2628.5,0.00380266]
[1739061842806,3.2078,2628.8,2628.5,0.00380266]
[1739061843108,3.9685,2628.8,2628.5,0.00380266]
[1739061843810,3.96849,2628.8,2628.5,0.00380266]
[1739061845811,3.2078,2628.8,2628.5,0.00380266]
[1739061846114,0.76074,2628.6,2628.5,0.00380266]
[1739061846604,6.76074,2628.6,2628.5,0.00380266]
[1739061846809,0.76077,2628.5,2627.9,0.5548]
[1739061847013,3.2078,2628.3,2627.9,0.5548]
[1739061847308,3.96864,2628.3,2627.9,0.5548]
[1739061847803,3.2078,2628.3,2627.9,0.5548]
[1739061851412,0.00570396,2628.4,2627.9,0.5548]
[1739061852612,0.00570396,2628.4,2628.1,2.72561305]
[1739061852802,0.00570396,2628.4,2628.2,1.1904]
[1739061853004,0.00570396,2628.4,2628.3,0.6075]
[1739061859018,0.59240396,2628.4,2628.1,2.72561305]
[1739061859526,0.5836,2628.3,2628.1,2.72561305]
[1739061861621,0.5836,2628.3,2628.2,0.6057]
[1739061862020,0.5836,2628.3,2628.2,1.1872]
[1739061864925,0.00570396,2628.4,2628.2,1.1872]
[1739061865120,0.00570396,2628.4,2628.3,0.5891]
[1739061866324,0.00570396,2628.4,2628.2,0.5815]
[1739061869928,0.00319794,2628.4,2628.2,0.5815]
[1739061871021,0.00319794,2628.4,2628.3,1.1554]
[1739061875521,0.00319794,2628.4,2628.3,4.3632]
[1739061878229,0.00319794,2628.4,2628.3,5.4506]
[1739061878430,1.1608,2629.2,2628.3,5.4506]
[1739061878630,1.1608,2629.2,2628.8,2.72561305]
[1739061878830,1.1608,2629.2,2628.9,1.7924]
[1739061881435,1.1608,2629.2,2628.9,1.186]
[1739061882134,1.1608,2629.2,2628.8,2.72561305]
[1739061884629,3.2078,2629.1,2628.8,2.72561305]
[1739061885435,3.2078,2629.1,2628.5,2.72561305]
[1739061885634,3.2078,2628.8,2628.3,1.1204]
[1739061885942,1.7532,2628.7,2628.3,0.5693]
[1739061889535,1.1741,2628.7,2628.3,0.5693]
[1739061889747,0.5976,2628.7,2628.5,2.72561305]
[1739061890237,0.5976,2628.7,2628.6,0.5627]
[1739061892939,0.5976,2628.7,2628.3,3.7771]
[1739061893237,0.6017,2628.6,2628.3,3.7771]
[1739061893440,1.1889,2628.6,2628.3,3.7771]
[1739061893731,0.5976,2628.7,2628.5,2.72561305]
[1739061893936,0.5976,2628.7,2628.6,0.5624]
[1739061894136,0.6017,2629.0,2628.6,0.5624]
[1739061894333,1.1989,2629.0,2628.7,0.5757]
[1739061894938,1.1989,2629.0,2628.8,3.32471305]
[1739061894939,0.5972,2629.0,2628.8,3.32471305]
[1739061897440,0.5972,2629.0,2628.8,0.5991]
[1739061897642,0.5972,2629.0,2628.7,0.5757]
[1739061898035,0.5972,2629.0,2628.6,1.0874]
[1739061898242,4.99824244,2628.9,2628.6,1.0874]
[1739061899443,3.2078,2628.8,2628.6,1.0874]
[1739061899743,0.5611,2628.7,2628.3,0.5774]
[1739061900144,0.5541,2628.6,2628.3,0.5774]
[1739061901950,3.2078,2628.8,2628.5,2.72561305]
[1739061902452,0.5541,2628.7,2628.5,2.72561305]
[1739061903153,3.2078,2628.8,2628.5,2.72561305]
[1739061903342,3.2078,2628.8,2628.6,0.5612]
[1739061903540,0.5847,2629.2,2628.7,3.781]
[1739061903743,1.1466,2629.2,2628.9,2.72561305]
[1739061907056,1.7495,2629.2,2628.7,0.5732]
[1739061909157,2.51007,2629.2,2628.7,0.5732]
[1739061909363,4.29122427,2629.1,2628.6,2.72561305]
[1739061909662,0.76065,2628.9,2628.4,1.0874]
[1739061909860,3.7804,2628.8,2628.3,3.88231305]
[1739061910053,0.5771,2628.7,2628.3,3.88231305]
[1739061917062,3.7804,2628.8,2628.3,3.88231305]
[1739061917262,0.5726,2628.8,2628.3,3.88231305]
[1739061920457,0.5726,2628.8,2628.4,3.2078]
[1739061920862,0.5726,2628.8,2628.6,2.72561305]
[1739061921061,0.5726,2628.8,2628.7,1.1408]
[1739061923564,0.5935,2629.1,2628.7,1.1408]
[1739061923864,0.588,2629.0,2628.8,0.5617]
[1739061927580,0.588,2629.0,2628.5,0.5745]
[1739061927766,0.588,2629.0,2628.5,1.1837]
[1739061928563,0.588,2629.0,2628.7,1.22272442]
[1739061934074,0.588,2629.0,2628.9,1.22272442]
[1739061934279,0.588,2629.0,2628.6,0.5507]
[1739061934280,0.00570396,2629.3,2628.8,1.22272442]
[1739061934581,0.60840396,2629.3,2629.1,1.22272442]
[1739061937679,0.00570396,2629.3,2629.1,1.22272442]
[1739061949186,3.2078,2629.2,2629.1,1.22272442]
[1739061950588,3.2078,2629.2,2628.6,0.5707]
[1739061951790,4.19888168,2629.1,2628.6,0.5707]
[1739061952192,0.6063,2629.0,2628.6,0.5707]
[1739061952393,0.6077,2628.9,2628.6,0.5707]
[1739061956787,0.6077,2628.9,2628.5,0.5528]
[1739061956788,0.6077,2628.9,2628.4,2.73220466]
[1739061956993,3.2078,2628.6,2628.1,3.32170466]
[1739061957297,3.2078,2628.6,2628.1,3.87210466]
[1739061957496,0.5799,2628.5,2628.1,3.87210466]
[1739061959293,0.5802,2628.4,2628.1,3.87210466]
[1739061962596,0.5799,2628.5,2628.1,3.87210466]
[1739061970308,3.96864,2628.3,2628.0,0.00250601]
[1739061970510,0.6088,2628.2,2628.0,0.00250601]
[1739061970813,0.76088,2628.1,2628.0,0.00250601]
[1739061971018,0.5909,2628.1,2628.0,0.00250601]
[1739061972318,1.35178,2628.1,2628.0,0.00250601]
[1739061972918,0.5909,2628.1,2628.0,0.00250601]
[1739061974226,1.35178,2628.1,2628.0,0.00250601]
[1739061974728,0.5909,2628.1,2628.0,0.00250601]
[1739061978431,3.2078,2628.3,2628.0,1.19630601]
[1739061978628,3.2078,2628.3,2628.2,2.73391256]
[1739061978929,1.7439,2628.7,2628.2,2.73391256]
[1739061978930,6.5817,2628.7,2628.2,2.73391256]
[1739061979524,5.9867,2628.7,2628.2,2.73391256]
[1739061979922,5.4291,2628.7,2628.2,2.73391256]
[1739061981528,5.4291,2628.7,2628.1,0.5582]
[1739061981529,4.18342442,2628.6,2628.1,0.5582]
[1739061981734,1.1472,2628.5,2628.1,0.5582]
[1739061985737,5.4291,2628.7,2628.2,2.73391256]
[1739061986141,3.2078,2628.7,2628.2,2.73391256]
[1739061986333,3.2078,2628.7,2628.1,0.5582]
[1739061986334,3.2078,2628.7,2628.5,2.73391256]
[1739061986637,3.2078,2628.7,2628.6,1.795]
[1739061986835,3.4253,2629.0,2628.6,1.795]
[1739061986836,3.807,2629.0,2628.6,1.795]
[1739061987039,3.2078,2629.0,2628.6,1.795]
[1739061990239,0.5858,2628.9,2628.6,1.795]
[1739061990837,0.5858,2628.9,2628.6,1.1863]
[1739061991138,3.2078,2628.7,2628.2,3.34171256]
[1739061991342,3.2078,2628.7,2628.3,0.5529]
[1739061992241,3.2078,2628.7,2628.5,2.73391256]
[1739061992532,0.5858,2628.9,2628.5,2.73391256]
[1739061992731,0.5858,2628.9,2628.6,0.6078]
[1739061992933,0.5858,2628.9,2628.7,0.6093]
[1739061993129,0.5858,2628.9,2628.8,0.5529]
[1739061996143,3.2078,2629.0,2628.8,3.28681256]
[1739061996543,3.21350396,2629.3,2628.8,3.28681256]
[1739061996735,3.21350396,2629.3,2629.1,2.73391256]
[1739061997035,3.21350396,2629.3,2629.2,0.567]
[1739061997641,0.00570396,2629.3,2629.2,1.6544]
[1739061997840,0.00570396,2629.3,2629.2,7.6544]
[1739061998138,3.2078,2629.7,2629.2,7.6544]
[1739061998340,3.2078,2629.7,2629.6,2.73391256]
[1739061999143,3.2078,2630.0,2629.6,2.73391256]
[1739061999335,3.2078,2630.0,2629.5,3.2078]
[1739061999336,3.2078,2630.0,2629.9,2.73391256]
[1739061999841,0.00570396,2630.1,2629.9,2.73391256]
[1739062000842,3.2078,2630.7,2629.9,7.02911256]
[1739062001044,3.2078,2630.7,2630.4,2.73391256]
[1739062001543,3.2078,2630.7,2630.1,2.73391256]
[1739062002042,3.21350396,2630.7,2630.1,2.73391256]
[1739062003039,3.21350396,2630.7,2630.4,2.73391256]
[1739062004151,3.21350396,2630.7,2630.5,1.1987]
[1739062004948,3.21350396,2630.7,2630.5,1.764]
[1739062005147,0.00570396,2630.7,2630.5,1.764]
[1739062005344,0.00570396,2630.7,2630.6,3.2078]
[1739062005642,0.00570396,2630.7,2630.6,4.2952]
[1739062005942,3.2078,2631.5,2630.6,10.2952]
[1739062006144,0.5645,2631.6,2630.6,10.2952]
[1739062006145,0.5645,2631.6,2631.2,2.73391256]
[1739062007741,0.5645,2631.6,2631.2,3.28401256]
[1739062008138,0.5645,2631.6,2631.5,2.73391256]
[1739062008343,0.56830396,2631.7,2631.5,2.73391256]
[1739062008944,0.56830396,2631.7,2631.2,2.73391256]
[1739062009747,3.2078,2631.5,2631.2,2.73391256]
[1739062009952,0.583,2631.4,2631.1,0.00570396]
[1739062014959,3.2078,2631.2,2631.1,0.00570396]
[1739062015549,0.583,2631.4,2631.1,0.00570396]
[1739062015949,3.2078,2631.2,2631.1,0.00570396]
[1739062019558,3.7961,2631.2,2631.1,0.00570396]
[1739062020857,3.2078,2631.2,2631.1,0.00570396]
[1739062021262,0.5883,2631.6,2631.1,0.00570396]
[1739062021464,0.5883,2631.6,2631.4,2.73391256]
[1739062021761,3.21350396,2631.7,2631.4,2.73391256]
[1739062021762,0.00570396,2631.7,2631.4,2.73391256]
[1739062022260,0.00570396,2631.7,2631.4,5.94171256]
[1739062022558,0.00570396,2631.7,2631.5,0.565]
[1739062022764,0.00570396,2631.7,2631.6,1.1802]
[1739062023261,3.2078,2632.3,2631.6,7.1802]
[1739062023561,3.7635,2632.6,2632.2,2.73391256]
[1739062023758,3.7635,2632.6,2632.3,0.5794]
[1739062023957,3.7635,2632.6,2632.2,2.73391256]
[1739062024573,3.2078,2632.6,2632.5,2.73391256]
[1739062026868,0.00570396,2632.7,2632.5,2.73391256]
[1739062027163,0.00570396,2632.7,2632.5,8.73391256]
[1739062027363,0.00570396,2632.7,2632.6,1.0874]
[1739062027567,3.2078,2632.9,2632.6,2.7264]
[1739062027764,3.2078,2632.9,2632.8,2.73391256]
[1739062035876,0.00380266,2633.1,2632.8,2.73391256]
[1739062037476,0.00380266,2633.1,2632.8,3.82131256]
[1739062039378,0.00380266,2633.1,2632.9,0.6047]
[1739062044174,0.00380266,2633.1,2632.8,3.82131256]
[1739062044381,3.2078,2632.9,2632.8,3.82131256]
[1739062046182,0.00380266,2633.1,2632.8,3.82131256]
[1739062048088,0.76325266,2633.1,2632.8,3.82131256]
[1739062048390,3.2078,2632.9,2632.6,0.00570396]
[1739062048690,0.594,2632.8,2632.6,0.00570396]
[1739062048891,1.1952,2632.8,2632.6,0.00570396]
[1739062050787,0.6012,2632.8,2632.6,0.00570396]
[1739062062192,3.2078,2632.7,2632.6,0.00570396]
[1739062062492,3.7987,2632.7,2632.6,0.00570396]
[1739062062898,3.7987,2632.7,2631.6,2.73391256]
[1739062062899,16.76518948,2632.7,2631.6,2.73391256]
[1739062063197,3.2078,2632.0,2631.6,2.73391256]
[1739062063396,0.6051,2631.9,2631.6,2.73391256]
[1739062063692,3.2078,2631.7,2631.3,2.73391256]
[1739062063998,3.2078,2631.7,2631.5,0.00570396]
[1739062066000,3.7951,2631.7,2631.5,0.00570396]
[1739062067898,0.00570396,2631.8,2631.6,2.73391256]
[1739062069403,0.59090396,2631.8,2631.6,2.73391256]
[1739062071602,3.2078,2631.7,2631.5,0.00570396]
[1739062074205,1.18870396,2631.8,2631.5,0.00570396]
[1739062076202,0.59090396,2631.8,2631.5,0.00570396]
[1739062077799,0.00570396,2631.8,2631.6,2.73391256]
[1739062081703,0.00570396,2631.8,2631.5,0.00570396]
[1739062088698,0.00570396,2631.8,2631.5,2.73961652]
[1739062092802,0.00570396,2631.8,2631.6,3.2078]
[1739062094308,3.2078,2632.3,2631.6,10.8358]
[1739062094506,3.2078,2632.3,2632.2,2.73391256]
[1739062095211,0.584,2632.5,2632.2,2.73391256]
[1739062095513,0.58780266,2632.5,2632.2,2.73391256]
[1739062095713,0.00380266,2632.5,2632.2,5.94171256]
[1739062096105,3.2078,2633.1,2632.3,3.82131256]
[1739062096307,3.2078,2633.1,2632.8,2.73391256]
[1739062096508,3.2078,2633.1,2632.9,1.1818]
[1739062097918,3.2078,2633.1,2632.9,2.2692]
[1739062099408,3.2078,2633.3,2633.0,0.5557]
[1739062099609,3.2078,2633.3,2633.2,2.73391256]
[1739062099805,0.5795,2633.8,2633.2,2.73391256]
[1739062100001,0.5795,2633.8,2633.7,2.73391256]
[1739062101706,0.6062,2634.0,2633.7,2.73391256]
[1739062101909,3.2078,2634.4,2633.8,0.5557]
[1739062102115,3.2078,2634.4,2634.0,2.73391256]
[1739062104613,3.2078,2634.4,2634.3,2.73391256]
[1739062105909,1.1795,2634.5,2634.3,2.73391256]
[1739062106309,0.5733,2634.5,2634.3,2.73391256]
[1739062106817,3.7814,2635.0,2634.3,2.73391256]
[1739062107012,0.5525,2634.9,2634.3,2.73391256]
[1739062107218,0.5525,2634.9,2634.4,0.00570396]
[1739062109016,3.2078,2634.7,2634.4,0.00570396]
[1739062109420,0.75903,2634.6,2634.4,0.00570396]
[1739062109628,0.5526,2634.5,2634.4,0.00570396]
[1739062110217,1.31164,2634.5,2634.4,0.00570396]
[1739062110414,0.5526,2634.5,2634.4,0.00570396]
[1739062111112,3.96679,2634.7,2634.4,0.00570396]
[1739062111312,3.2078,2634.7,2634.4,0.00570396]
[1739062113618,3.9668,2634.7,2634.4,0.00570396]
[1739062114720,3.2078,2634.7,2634.0,2.73391256]
[1739062114922,0.5526,2634.8,2633.9,1.0874]
[1739062114923,3.2078,2634.2,2633.9,1.0874]
[1739062115119,0.5714,2634.1,2633.7,2.73391256]
[1739062115323,3.2078,2633.9,2633.7,2.73391256]
[1739062116825,0.57710396,2634.1,2633.7,2.73391256]
[1739062118727,3.2078,2634.0,2633.7,2.73391256]
[1739062118928,3.96699,2634.0,2633.7,2.73391256]
[1739062121033,3.2078,2634.0,2633.7,2.73391256]
[1739062121221,3.2078,2634.0,2633.5,0.00570396]
[1739062121527,3.96708,2633.7,2633.5,0.00570396]
[1739062121825,1.1019,2633.6,2633.5,0.00570396]
[1739062122523,0.5518,2633.6,2633.5,0.00570396]
[1739062124024,1.3111,2633.6,2633.5,0.00570396]
[1739062125826,0.75932,2633.5,2632.8,2.73391256]
[1739062126026,0.75942,2633.2,2632.8,2.73391256]
[1739062126229,0.606,2633.1,2632.8,2.73391256]
[1739062126724,3.2078,2632.9,2632.5,4.42131256]
[1739062126934,3.2078,2632.9,2632.7,0.00570396]
[1739062127230,0.606,2633.1,2632.7,0.00570396]
[1739062127418,0.606,2633.1,2632.8,2.73391256]
[1739062128218,0.606,2633.1,2632.8,3.29821256]
[1739062129130,1.1739,2633.1,2632.8,3.29821256]
[1739062131131,3.2078,2633.0,2632.8,3.29821256]
[1739062131431,3.96728,2633.0,2632.8,2.73391256]
[1739062131623,3.2078,2633.0,2632.8,2.73391256]
[1739062133140,3.2078,2633.0,2632.7,0.00570396]
[1739062133326,0.7595,2632.9,2632.7,0.00570396]
[1739062133529,0.75953,2632.8,2632.7,0.00570396]
[1739062135833,0.75951,2632.9,2632.7,0.00570396]
[1739062136030,3.2078,2633.0,2632.7,0.00570396]
[1739062136335,0.75953,2632.8,2632.7,0.00570396]
[1739062137631,3.2078,2633.0,2632.7,0.00570396]
[1739062137937,3.2078,2633.0,2632.8,2.73391256]
[1739062138631,3.2078,2633.0,2632.7,0.00570396]
[1739062138833,0.75953,2632.8,2632.7,0.00570396]